bitfinex/quotes_SOLUSD_20250123
["timestamp","ask_amount","ask_price","bid_price","bid_amount"]
[1737597739613,27.738084,252.45,252.39,5.59]
[1737597740123,28.48103404,252.45,252.39,5.59]
[1737597740808,3.9609,252.47,252.39,5.59]
[1737597741007,3.9609,252.47,252.32,3.9632]
[1737597741307,4.70376349,252.47,252.33,2.01]
[1737597742262,1.5569,252.49,252.33,2.01]
[1737597742263,4.70338931,252.49,252.34,3.9629]
[1737597742533,4.70338931,252.49,252.27,4.99990584]
[1737597742534,58.2,252.3,252.03,6.60966499]
[1737597742829,58.2,252.24,252.04,3.9675]
[1737597743126,23.776884,252.22,252.02,3.9677]
[1737597743316,23.776884,252.2,252.02,3.9677]
[1737597743523,23.776884,252.18,251.98,1.6594]
[1737597743702,0.74386228,252.17,252.01,1.77]
[1737597744029,3.9658,252.15,252.05,312.063]
[1737597744223,0.74387731,252.14,252.05,0.063]
[1737597744831,23.776884,252.13,252.05,0.063]
[1737597745002,3.9655,252.17,252.05,0.063]
[1737597745208,4.70929367,252.17,252.05,0.063]
[1737597745405,3.9655,252.17,252.05,0.063]
[1737597745602,4.70921414,252.17,252.05,0.063]
[1737597745814,23.776884,252.16,252.05,0.063]
[1737597746416,0.74377734,252.19,252.05,0.063]
[1737597746720,0.74377734,252.21,252.05,0.063]
[1737597746917,23.776884,252.23,252.05,0.063]
[1737597747110,3.9643,252.25,252.05,0.063]
[1737597747111,0.74370379,252.22,252.06,3.9673]
[1737597747322,3.9643,252.25,252.06,3.9673]
[1737597747323,0.74362607,252.24,252.1,312.0]
[1737597747516,4.70787425,252.25,252.1,312.0]
[1737597747717,4.70787425,252.25,252.08,20.0]
[1737597748041,23.776884,252.24,252.08,20.0]
[1737597748219,27.741384,252.24,252.09,3.9668]
[1737597748536,23.776884,252.24,252.09,3.9668]
[1737597749028,0.74357425,252.25,252.09,3.9668]
[1737597749212,3.9637,252.29,252.09,23.9668]
[1737597749530,6.609665,252.33,252.13,20.0]
[1737597749742,3.9634,252.31,252.13,20.0]
[1737597749918,11.3160448,252.33,252.13,20.0]
[1737597750119,27.740184,252.32,252.14,3.966]
[1737597750321,0.74329682,252.31,252.14,5.736]
[1737597750518,23.776884,252.3,252.14,5.736]
[1737597750718,3.9633,252.32,252.14,5.736]
[1737597750719,23.776884,252.28,252.21,312.0]
[1737597751334,3.964,252.27,252.21,312.0]
[1737597751640,0.74343047,252.32,252.17,20.0]
[1737597751811,3.9634,252.31,252.18,3.84]
[1737597752012,23.776884,252.29,252.18,3.84]
[1737597752208,0.74333904,252.3,252.06,9.9178]
[1737597752209,23.776884,252.27,252.07,3.9671]
[1737597752613,23.776884,252.29,252.07,13.8849]
[1737597752916,23.776884,252.27,252.09,3.84]
[1737597753618,23.776884,252.25,252.1,3.9666]
[1737597754526,3.9641,252.26,252.17,312.0]
[1737597754732,0.74346714,252.3,252.17,312.0]
[1737597754733,3.9639,252.28,252.17,315.9654]
[1737597754910,3.9639,252.28,252.17,3.9654]
[1737597756439,0.74337154,252.34,252.16,20.0]
[1737597756642,0.74337154,252.34,252.18,20.0]
[1737597756643,3.963,252.33,252.18,20.0]
[1737597756940,0.74337154,252.34,252.22,20.0]
[1737597757239,3.9619,252.41,252.22,20.0]
[1737597757415,0.74307712,252.45,252.22,20.0]
[1737597757416,3.9613,252.44,252.22,32.49990584]
[1737597758037,3.9613,252.44,252.36,312.0]
[1737597758235,0.74297517,252.47,252.36,312.0]
[1737597758543,3.9602,252.51,252.3,20.0]
[1737597758709,3.9602,252.51,252.28,13.8734]
[1737597758710,0.7428158,252.5,252.31,20.0]
[1737597758915,0.7427726,252.55,252.33,4.99990584]
[1737597759213,14.6013726,252.55,252.32,20.0]
[1737597759635,14.6013726,252.55,252.28,13.8734]
[1737597759837,0.03,252.44,252.31,20.0]
[1737597760240,0.03,252.44,252.36,20.0]
[1737597760617,0.03,252.44,252.4,20.0]
[1737597761315,0.03,252.44,252.42,20.0]
[1737597761631,0.03,252.44,252.43,312.0]
[1737597763144,0.03,252.44,252.32,20.0]
[1737597763646,0.03,252.44,252.31,3.9633]
[1737597764025,0.03,252.44,252.32,20.0]
[1737597764669,0.03,252.44,252.32,23.9631]
[1737597765351,0.03,252.44,252.32,20.0]
[1737597766146,0.77292798,252.44,252.34,312.0]
[1737597766352,23.776884,252.43,252.34,312.0]
[1737597766548,23.776884,252.43,252.17,4.99990584]
[1737597766549,37.643184,252.41,252.23,3.9645]
[1737597766856,37.643184,252.41,252.21,6.4021]
[1737597766857,23.776884,252.39,252.21,6.4021]
[1737597767065,0.74323246,252.38,252.21,6.4021]
[1737597767263,0.74323246,252.38,252.22,4.0277]
[1737597767869,3.9618,252.41,252.24,20.0]
[1737597768173,24.51987361,252.4,252.22,0.063]
[1737597768670,13.8674,252.39,252.22,0.063]
[1737597768869,23.776884,252.37,252.22,0.063]
[1737597769166,23.776884,252.35,252.22,0.063]
[1737597769541,23.776884,252.35,252.25,312.0]
[1737597769942,3.9629,252.34,252.25,312.0]
[1737597771057,23.776884,252.33,252.25,312.0]
[1737597771262,24.52016185,252.33,252.22,0.063]
[1737597771859,23.776884,252.31,252.22,0.063]
[1737597772068,0.74337704,252.3,252.22,0.063]
[1737597772375,24.52028145,252.31,252.22,0.063]
[1737597773070,0.74336398,252.35,252.22,0.063]
[1737597773374,0.74336398,252.31,252.22,0.063]
[1737597773750,23.776884,252.31,252.22,0.063]
[1737597773947,23.776884,252.29,252.22,0.063]
[1737597774151,23.776884,252.27,252.22,312.063]
[1737597774374,0.74342149,252.29,252.22,312.063]
[1737597775061,23.776884,252.27,252.22,0.063]
[1737597775255,24.5203548,252.27,252.22,0.063]
[1737597775479,26.1651548,252.27,252.22,0.063]
[1737597777782,23.776884,252.25,252.22,0.063]
[1737597777954,23.776884,252.23,252.22,0.063]
[1737597778858,0.74359546,252.23,252.22,0.063]
[1737597779777,3.9646,252.23,252.22,0.063]
[1737597780963,9.9081,252.32,252.22,0.063]
[1737597781161,10.65147883,252.32,252.22,0.063]
[1737597781863,23.776884,252.31,252.22,0.063]
[1737597782177,3.9632,252.32,252.22,4.0277]
[1737597782376,0.74326924,252.38,252.22,4.0277]
[1737597782582,0.74314972,252.41,252.23,20.0]
[1737597782881,0.74314972,252.41,252.31,312.0]
[1737597783199,23.806884,252.4,252.31,312.0]
[1737597783367,0.03,252.4,252.31,312.0]
[1737597783769,20.0,252.35,252.22,0.063]
[1737597784078,20.0,252.29,252.22,0.063]
[1737597784286,52.02047331,252.28,252.22,0.063]
[1737597784782,20.0,252.22,252.09,0.063]
[1737597784983,0.74383064,252.21,252.09,0.063]
[1737597785372,23.776884,252.16,252.09,0.063]
[1737597785581,23.776884,252.14,252.09,0.063]
[1737597785886,3.9665,252.11,252.09,0.063]
[1737597786187,27.742684,252.15,252.09,0.063]
[1737597786486,0.74394063,252.14,252.09,0.063]
[1737597786998,23.776884,252.13,252.09,0.063]
[1737597787173,23.776884,252.11,252.09,0.063]
[1737597787377,0.74394633,252.1,252.09,0.063]
[1737597787672,28.48743033,252.1,252.09,0.0001]
[1737597787872,23.776884,252.1,252.09,0.0001]
[1737597788084,27.743484,252.1,252.09,0.0001]
[1737597789266,2.0,252.13,252.09,0.0001]
[1737597789468,4.71019295,252.12,252.09,0.0001]
[1737597789666,23.776884,252.11,252.09,0.0001]
[1737597790278,3.9663,252.12,252.09,0.0001]
[1737597790478,4.70997728,252.14,252.09,0.0001]
[1737597790704,23.776884,252.13,252.09,0.0001]
[1737597790866,0.74397812,252.12,252.09,0.0001]
[1737597791267,23.776884,252.11,252.09,0.0001]
[1737597791486,0.74413049,252.1,252.09,0.0001]
[1737597791893,4.71073049,252.1,252.09,0.0001]
[1737597792687,3.9666,252.1,252.09,0.0001]
[1737597792866,0.7440438,252.11,252.09,0.0001]
[1737597793068,3.9664,252.12,252.09,0.0001]
[1737597793268,23.776884,252.1,252.09,0.0001]
[1737597793769,23.776884,252.11,252.09,0.0001]
[1737597793971,0.7439165,252.1,252.09,0.0001]
[1737597794486,2.0,252.14,252.09,0.0001]
[1737597794698,3.9659,252.15,252.09,0.0001]
[1737597794868,4.71147339,252.18,252.09,0.0001]
[1737597795063,3.9656,252.17,252.09,0.0001]
[1737597796103,23.776884,252.15,252.09,0.0001]
[1737597796268,0.74383267,252.14,252.09,0.0001]
[1737597796472,24.52073009,252.15,252.09,0.0001]
[1737597797283,4.0304,252.17,252.09,0.0001]
[1737597797487,0.74370272,252.24,252.09,20.0001]
[1737597797696,0.74370272,252.27,252.15,312.0]
[1737597797872,0.74344305,252.26,252.15,312.0]
[1737597798371,0.74344305,252.26,252.09,3.9669]
[1737597798893,23.776884,252.25,252.11,0.18]
[1737597799074,0.74362285,252.24,252.11,0.18]
[1737597799497,23.776884,252.23,252.11,0.18]
[1737597799701,43.776884,252.21,252.11,0.18]
[1737597799877,0.74378396,252.2,252.11,0.18]
[1737597800197,23.776884,252.18,252.11,0.18]
[1737597800367,24.52062932,252.18,252.11,0.18]
[1737597800766,23.776884,252.18,252.11,0.18]
[1737597801472,3.9652,252.19,252.11,0.18]
[1737597802395,23.776884,252.18,252.11,0.18]
[1737597803598,24.52063005,252.18,252.11,0.18]
[1737597804220,3.9652,252.19,252.11,0.18]
[1737597804221,3.9655,252.17,252.11,0.18]
[1737597805220,4.70923117,252.17,252.11,0.18]
[1737597805417,23.776884,252.14,252.11,0.18]
[1737597805617,23.776884,252.12,252.11,0.18]
[1737597805799,23.776884,252.12,252.09,0.0001]
[1737597806199,23.776884,252.1,252.09,0.0001]
[1737597807108,0.74412754,252.1,252.05,0.0001]
[1737597807300,20.0,252.09,252.05,0.0001]
[1737597807499,23.776884,252.07,252.0,2.0]
[1737597807715,23.776884,252.05,252.0,2.0]
[1737597807923,23.776884,252.03,252.0,2.0]
[1737597808116,13.8838,252.09,252.0,2.0]
[1737597808117,23.776884,252.01,252.0,2.0]
[1737597808629,30.265984,252.01,252.0,2.0]
[1737597808809,0.74424764,252.08,252.0,2.0]
[1737597809318,4.71374764,252.08,252.0,2.0]
[1737597809511,23.776884,252.06,252.0,2.0]
[1737597809693,20.0,252.01,252.0,2.0]
[1737597809900,20.0,252.01,251.79,6.4891]
[1737597809901,0.74433484,252.01,251.8,3.9714]
[1737597810428,23.776884,251.98,251.8,3.9714]
[1737597810622,23.776884,252.0,251.8,3.9714]
[1737597810799,23.776884,251.98,251.82,20.0]
[1737597811000,0.74429972,251.97,251.82,20.0]
[1737597811200,37.665084,252.01,251.8,3.9714]
[1737597811521,37.665084,252.01,251.82,20.0]
[1737597811522,0.74437734,252.0,251.82,20.0]
[1737597812227,0.74437734,252.0,251.83,20.0]
[1737597812897,20.0,251.98,251.8,3.9714]
[1737597813099,0.6979,251.69,251.5,25.0]
[1737597813299,0.6979,251.69,251.38,0.183]
[1737597813300,7.5,251.6,251.44,1.65856644]
[1737597813495,8.12118808,251.59,251.38,0.183]
[1737597813727,0.74553451,251.59,251.38,0.183]
[1737597814108,0.74553451,251.59,251.41,3.9775]
[1737597814305,0.74561324,251.64,251.39,4.99990584]
[1737597814528,4.999905,251.58,251.43,5.93775371]
[1737597814699,4.999905,251.58,251.46,20.0]
[1737597814902,0.74541607,251.67,251.47,4.99990584]
[1737597815104,2.20350859,251.63,251.47,4.99990584]
[1737597815321,4.71944422,251.62,251.43,0.93784787]
[1737597815529,4.71944422,251.62,251.47,20.0]
[1737597816022,2.20350859,251.63,251.47,20.0]
[1737597816023,2.20350859,251.63,251.61,312.0]
[1737597816418,2.20350859,251.63,251.47,27.5]
[1737597816629,2.20350859,251.63,251.53,20.0]
[1737597817139,19.4568604,251.66,251.49,24.99990584]
[1737597817341,62.78053489,251.62,251.44,3.977]
[1737597817512,23.77994383,251.64,251.45,12.49990584]
[1737597817707,30.53454873,251.64,251.37,23.776884]
[1737597817936,48.61447487,251.63,251.37,23.776884]
[1737597818237,5.0,251.59,251.37,23.776884]
[1737597818539,5.0,251.62,251.36,2.47849294]
[1737597818717,16.09297134,251.63,251.36,2.47849294]
[1737597818718,5.0,251.59,251.36,2.47849294]
[1737597818911,23.776884,251.56,251.31,1.67137379]
[1737597819113,7.84756686,251.58,251.29,29.8459]
[1737597819322,7.84756686,251.58,251.32,20.0]
[1737597819522,20.34756686,251.58,251.57,312.0]
[1737597819739,44.12445086,251.58,251.57,312.0]
[1737597820045,36.276884,251.58,251.57,312.0]
[1737597820335,12.5,251.6,251.32,20.0]
[1737597820540,12.5,251.6,251.33,20.0]
[1737597820840,23.776884,251.62,251.33,31.85]
[1737597821041,5.0,251.64,251.33,31.85]
[1737597821232,5.89632491,251.5,251.43,0.063]
[1737597821437,5.89632491,251.5,251.49,312.0]
[1737597823144,23.58529964,251.58,251.49,312.0]
[1737597823337,23.58529964,251.58,251.51,20.0]
[1737597824513,44.46954555,251.65,251.52,3.9758]
[1737597825045,12.5,251.62,251.52,3.9758]
[1737597825257,7.5,251.62,251.52,3.9758]
[1737597825414,55.94334555,251.65,251.52,3.9758]
[1737597825620,7.5,251.63,251.52,3.9758]
[1737597826038,61.97544555,251.65,251.52,3.9758]
[1737597826234,61.97544555,251.65,251.64,312.0]
[1737597826525,51.96954555,251.65,251.64,312.0]
[1737597826931,44.46954555,251.65,251.64,312.0]
[1737597827134,7.5,251.6,251.43,4.0401]
[1737597827331,7.5,251.52,251.43,4.0401]
[1737597827552,12.5,251.58,251.44,3.977]
[1737597827847,7.5,251.56,251.44,3.977]
[1737597828143,7.5,251.6,251.45,20.0]
[1737597828369,7.5,251.6,251.44,3.977]
[1737597828524,7.5,251.62,251.44,13.9197]
[1737597828726,7.5,251.64,251.47,20.0]
[1737597828922,7.5,251.64,251.43,0.063]
[1737597829128,7.5,251.56,251.44,3.977]
[1737597829348,5.0,251.54,251.44,3.977]
[1737597829544,7.5,251.56,251.44,3.977]
[1737597829859,7.5,251.52,251.44,3.977]
[1737597830031,7.5,251.52,251.51,312.0]
[1737597831351,40.252684,251.52,251.43,0.063]
[1737597831543,5.0,251.45,251.43,0.063]
[1737597831744,23.776884,251.47,251.43,0.063]
[1737597832056,28.776884,251.47,251.43,0.063]
[1737597832231,28.776884,251.44,251.43,0.063]
[1737597832433,37.02277437,251.44,251.43,0.063]
[1737597832942,5.0,251.35,251.21,3.9807]
[1737597833273,5.0,251.35,251.29,1.25793446]
[1737597833468,5.0,251.35,251.21,3.9807]
[1737597833672,7.5,251.39,251.22,0.08553293]
[1737597833845,7.5,251.39,251.24,20.0]
[1737597834034,7.5,251.39,251.25,0.23538114]
[1737597834233,5.0,251.4,251.24,20.0]
[1737597834568,5.18350632,251.39,251.36,312.0]
[1737597834866,9.16100632,251.41,251.36,312.0]
[1737597835024,5.18350632,251.39,251.36,312.0]
[1737597835224,3.9775,251.41,251.36,312.0]
[1737597835446,23.776884,251.41,251.36,312.0]
[1737597836165,5.18350632,251.4,251.36,312.0]
[1737597836745,23.776884,251.41,251.36,312.0]
[1737597837051,5.18350632,251.4,251.36,312.0]
[1737597837662,23.776884,251.39,251.36,312.0]
[1737597837950,5.18350632,251.37,251.36,312.0]
[1737597838630,32.93799032,251.41,251.36,312.0]
[1737597838844,3.9777,251.4,251.36,312.0]
[1737597839056,5.18350632,251.37,251.36,312.0]
[1737597840081,5.18350632,251.37,251.27,3.9797]
[1737597840283,5.18350632,251.37,251.26,20.0]
[1737597840448,5.18350632,251.35,251.26,23.9799]
[1737597840649,9.16120632,251.4,251.26,23.9799]
[1737597840865,5.18350632,251.37,251.26,23.9799]
[1737597841075,5.18350632,251.39,251.26,23.9799]
[1737597841373,27.754684,251.4,251.26,23.9799]
[1737597841581,5.18350632,251.39,251.26,23.9799]
[1737597841877,5.18350632,251.44,251.26,33.9297]
[1737597842048,23.776884,251.41,251.26,33.9297]
[1737597842381,5.18350632,251.39,251.26,33.9297]
[1737597842551,5.18350632,251.38,251.26,23.9799]
[1737597842748,5.18350632,251.36,251.26,23.9799]
[1737597842965,9.16180632,251.36,251.32,312.0]
[1737597843366,9.16180632,251.36,251.26,23.9799]
[1737597843748,23.776884,251.33,251.23,48.56122655]
[1737597843953,5.18350632,251.29,251.23,48.56122655]
[1737597844843,5.18350632,251.3,251.23,48.56122655]
[1737597845471,5.18350632,251.28,251.23,48.56122655]
[1737597845673,5.18350632,251.32,251.23,48.56122655]
[1737597846062,5.18350632,251.32,251.23,23.9803]
[1737597846576,5.18350632,251.38,251.27,312.0]
[1737597847070,5.18350632,251.38,251.23,33.9313]
[1737597847274,5.18350632,251.41,251.23,33.9313]
[1737597847463,5.18350632,251.43,251.27,20.0]
[1737597847658,5.18350632,251.5,251.28,5.0]
[1737597847846,5.18350632,251.5,251.35,22.31649368]
[1737597848049,5.18350632,251.51,251.37,20.0]
[1737597848345,5.18350632,251.58,251.38,5.0]
[1737597848561,5.18350632,251.58,251.41,20.0]
[1737597848845,7.53,251.6,251.43,20.0]
[1737597849056,7.53,251.6,251.49,20.0]
[1737597849473,0.03,251.6,251.52,5.0]
[1737597849777,0.03,251.6,251.55,20.0]
[1737597849962,0.03,251.6,251.59,312.0]
[1737597852679,5.18350632,251.58,251.44,3.977]
[1737597852881,5.21350632,251.6,251.44,3.977]
[1737597853461,5.21350632,251.6,251.46,20.0]
[1737597853676,5.21350632,251.6,251.47,3.9766]
[1737597854363,0.03,251.6,251.47,3.9766]
[1737597854679,0.03,251.6,251.48,20.0]
[1737597854877,0.03,251.6,251.56,20.0]
[1737597855058,0.03,251.6,251.51,2.31649368]
[1737597855253,0.03,251.6,251.47,13.9181]
[1737597855478,0.03,251.6,251.5,20.0]
[1737597855667,0.03,251.6,251.59,312.0]
[1737597856058,0.03,251.6,251.51,3.9759]
[1737597856778,0.03,251.6,251.47,9.9415]
[1737597856992,5.18350632,251.59,251.46,20.0]
[1737597857284,5.18350632,251.53,251.46,20.0]
[1737597857581,5.18350632,251.53,251.44,3.977]
[1737597857792,5.18350632,251.51,251.42,3.9773]
[1737597858480,5.18350632,251.56,251.42,3.9773]
[1737597858656,0.03,251.6,251.44,20.0]
[1737597858864,5.18350632,251.55,251.45,23.9769]
[1737597859184,5.18350632,251.52,251.34,9.39359368]
[1737597859358,5.18350632,251.59,251.39,2.31649368]
[1737597859558,3.9747,251.59,251.4,5.0]
[1737597859882,0.03,251.6,251.35,17.89031843]
[1737597859883,5.21350632,251.6,251.44,20.0]
[1737597860286,5.21350632,251.6,251.43,5.0]
[1737597860464,5.21350632,251.6,251.45,5.0]
[1737597860664,5.18350632,251.59,251.45,5.0]
[1737597860880,0.03,251.6,251.45,5.0]
[1737597861183,5.18350632,251.59,251.48,20.0]
[1737597861387,0.03,251.6,251.49,20.0]
[1737597862184,5.18350632,251.58,251.55,312.0]
[1737597862484,5.18350632,251.58,251.49,20.0]
[1737597862681,0.03,251.6,251.49,20.0]
[1737597862992,0.03,251.6,251.46,9.9419]
[1737597863285,0.03,251.6,251.49,20.0]
[1737597863791,0.03,251.6,251.5,25.0]
[1737597863971,0.03,251.6,251.5,20.0]
[1737597864289,0.03,251.6,251.46,9.9419]
[1737597864472,5.18350632,251.55,251.44,3.977]
[1737597865180,5.18350632,251.55,251.43,20.0]
[1737597865375,5.18350632,251.55,251.48,312.0]
[1737597865577,5.18350632,251.55,251.4,9.9441]
[1737597865972,5.18350632,251.55,251.43,20.0]
[1737597866185,5.18350632,251.52,251.4,9.9441]
[1737597866489,5.18350632,251.52,251.39,3.9778]
[1737597866490,5.18350632,251.5,251.39,3.9778]
[1737597867084,5.18350632,251.52,251.39,23.9778]
[1737597867302,5.18350632,251.57,251.39,33.9225]
[1737597867467,5.18350632,251.57,251.41,5.0]
[1737597867664,5.18350632,251.57,251.43,25.0]
[1737597867893,0.03,251.6,251.43,25.0]
[1737597868393,5.18350632,251.59,251.43,5.0]
[1737597868568,0.03,251.6,251.51,312.0]
[1737597869190,0.03,251.6,251.52,3.9758]
[1737597869373,0.03,251.55,251.5,3.976]
[1737597869567,0.03,251.55,251.49,23.9762]
[1737597869872,0.03,251.55,251.49,3.9762]
[1737597870187,0.03,251.55,251.42,20.0]
[1737597870504,5.18350632,251.54,251.39,20.0]
[1737597871069,5.18350632,251.54,251.35,2.31649368]
[1737597871270,9.15900632,251.54,251.37,3.9781]
[1737597871495,5.18350632,251.49,251.37,3.9781]
[1737597871675,5.18350632,251.44,251.32,3.9789]
[1737597872196,5.18350632,251.4,251.28,3.9796]
[1737597872414,5.18350632,251.37,251.31,312.0]
[1737597872696,5.18350632,251.36,251.28,3.9796]
[1737597872896,5.18350632,251.38,251.28,3.9796]
[1737597873079,5.18350632,251.42,251.29,20.0]
[1737597873270,5.18350632,251.35,251.25,3.98]
[1737597873469,5.18350632,251.31,251.21,3.9807]
[1737597873693,5.18350632,251.33,251.21,3.9807]
[1737597873867,14.66569841,251.44,251.2,60.86716344]
[1737597873868,5.18350632,251.26,251.2,60.86716344]
[1737597874065,1.866,251.34,251.2,60.86716344]
[1737597874066,5.18350632,251.25,251.2,60.86716344]
[1737597874267,5.18350632,251.28,251.2,60.86716344]
[1737597874685,5.18350632,251.32,251.21,3.9807]
[1737597875001,7.04950632,251.34,251.21,3.9807]
[1737597875202,5.18350632,251.34,251.23,23.9803]
[1737597875401,9.16180632,251.37,251.23,23.9803]
[1737597875698,5.18350632,251.41,251.23,23.9803]
[1737597875880,5.18350632,251.38,251.23,23.9803]
[1737597876072,7.06630632,251.43,251.26,20.0]
[1737597876272,5.18350632,251.41,251.26,20.0]
[1737597876581,5.18350632,251.38,251.26,20.0]
[1737597877109,5.18350632,251.33,251.21,3.9807]
[1737597877297,4.72393551,251.37,251.21,3.9807]
[1737597877298,5.18350632,251.35,251.21,3.9807]
[1737597878210,3.9781,251.37,251.2,64.84786344]
[1737597878413,3.9781,251.37,251.23,20.0]
[1737597878587,5.18350632,251.34,251.23,20.0]
[1737597878911,5.18350632,251.39,251.23,20.0]
[1737597879116,3.9778,251.4,251.23,20.0]
[1737597879321,3.9778,251.4,251.24,3.9802]
[1737597879690,5.18350632,251.38,251.24,3.9802]
[1737597880008,5.18350632,251.38,251.24,23.9802]
[1737597880388,1.8828,251.43,251.27,20.0]
[1737597880389,3.9775,251.42,251.27,20.0]
[1737597880604,5.18350632,251.36,251.24,3.9802]
[1737597880999,9.16100632,251.42,251.24,6.29669368]
[1737597881321,5.18350632,251.42,251.28,20.0]
[1737597881498,1.8828,251.43,251.28,20.0]
[1737597881700,5.18350632,251.44,251.28,20.0]
[1737597881888,5.18350632,251.46,251.24,13.9938]
[1737597882088,5.18350632,251.41,251.24,13.9938]
[1737597882287,5.18350632,251.41,251.27,20.0]
[1737597882520,5.18350632,251.36,251.27,20.0]
[1737597883019,5.18350632,251.39,251.25,3.98]
[1737597883217,5.18350632,251.34,251.24,0.063]
[1737597883718,5.18350632,251.4,251.24,33.9938]
[1737597883900,5.18350632,251.43,251.25,43.776884]
[1737597884227,5.18350632,251.47,251.25,46.09337768]
[1737597884409,9.16080632,251.43,251.26,13.9297]
[1737597884606,5.18350632,251.44,251.29,20.0]
[1737597884926,14.34431232,251.44,251.29,20.0]
[1737597885124,5.18350632,251.35,251.26,3.9799]
[1737597886223,5.18350632,251.3,251.24,0.063]
[1737597887920,5.18350632,251.29,251.24,0.063]
[1737597888223,16.660806,251.44,251.24,0.063]
[1737597888224,5.18350632,251.33,251.24,0.063]
[1737597888408,5.18350632,251.33,251.24,4.0432]
[1737597888915,5.18350632,251.35,251.24,4.0432]
[1737597891234,5.18350632,251.37,251.24,4.0432]
[1737597891611,0.74593878,251.48,251.25,43.776884]
[1737597891612,5.18350632,251.48,251.25,43.776884]
[1737597891929,5.18350632,251.48,251.34,20.0]
[1737597892129,5.18350632,251.45,251.34,20.0]
[1737597892831,10.39701332,251.49,251.38,20.0]
[1737597893045,5.18350632,251.45,251.39,3.9778]
[1737597893711,5.21350632,251.49,251.39,3.9778]
[1737597894112,5.21350632,251.49,251.42,20.0]
[1737597894529,0.03,251.49,251.42,20.0]
[1737597895026,0.03,251.49,251.47,20.0]
[1737597895611,0.0001,251.49,251.48,20.0]
[1737597895930,0.0001,251.49,251.48,43.776884]
[1737597896135,0.03,251.55,251.48,43.776884]
[1737597896622,0.03,251.55,251.52,20.0]
[1737597897022,0.03,251.66,251.53,13.9147]
[1737597897421,0.03,251.66,251.57,20.0]
[1737597897635,0.03,251.66,251.61,20.0]
[1737597897807,5.21350632,251.66,251.65,312.0]
[1737597899233,5.21350632,251.66,251.48,20.0]
[1737597899234,3.9737,251.65,251.48,20.0]
[1737597899414,5.18350632,251.61,251.48,20.0]
[1737597900341,5.18350632,251.6,251.49,20.0]
[1737597900846,5.18350632,251.57,251.46,13.9186]
[1737597901144,5.18350632,251.57,251.5,3.9761]
[1737597901432,5.18350632,251.63,251.5,3.9761]
[1737597901635,0.03,251.66,251.53,20.0]
[1737597901845,0.03,251.66,251.58,20.0]
[1737597902229,0.03,251.66,251.65,312.0]
[1737597902822,5.18350632,251.69,251.65,312.0]
[1737597903027,5.18350632,251.69,251.51,2.31649368]
[1737597903341,5.18350632,251.71,251.52,17.51068051]
[1737597903641,5.18350632,251.67,251.55,20.0]
[1737597904049,3.9728,251.71,251.55,20.0]
[1737597904050,5.18350632,251.68,251.55,20.0]
[1737597904554,5.18350632,251.66,251.55,20.0]
[1737597904727,5.18350632,251.7,251.55,20.0]
[1737597905124,5.18350632,251.74,251.6,20.0]
[1737597905425,5.18350632,251.66,251.6,20.0]
[1737597905820,5.18350632,251.7,251.57,3.975]
[1737597906025,5.18350632,251.68,251.67,312.0]
[1737597906462,5.18350632,251.63,251.54,20.0]
[1737597906662,5.18350632,251.65,251.52,3.9757]
[1737597906947,3.9734,251.68,251.52,3.9757]